fUST/lending_fUST_20250623
["ID","MTS","AMOUNT","RATE_DAILY","PERIOD"]
[367086531,1750653053579,-445.56212317,0.00022191,2]
[367086532,1750653053588,-460.0,0.00022191,2]
[367086533,1750653053597,-460.0,0.00022191,2]
[367086534,1750653053607,-460.0,0.00022191,2]
[367086535,1750653053617,-460.0,0.00022191,2]
[367086536,1750653053626,-460.0,0.00022191,2]
[367086537,1750653053635,-1586.45,0.00022191,2]
[367086538,1750653053644,-460.0,0.00022191,2]
[367086539,1750653053653,-322.66289826,0.00022191,2]
[367086540,1750653053662,-460.0,0.00022191,2]
[367086541,1750653053671,-460.0,0.00022191,2]
[367086542,1750653053680,-460.0,0.00022191,2]
[367086543,1750653053689,-500.0,0.00022191,2]
[367086544,1750653053698,-460.0,0.00022191,2]
[367086545,1750653053708,-1074.53,0.00022191,2]
[367086546,1750653053720,-460.0,0.00022191,2]
[367086547,1750653053729,-460.0,0.00022191,2]
[367086548,1750653053738,-460.0,0.00022191,2]
[367086549,1750653053747,-191.36703391,0.00022191,2]
[367086550,1750653053756,-460.0,0.00022191,2]
[367086551,1750653053766,-598.40308427,0.00022191,2]
[367086552,1750653053776,-1994.63,0.00022191,2]
[367086553,1750653053786,-460.0,0.00022191,2]
[367086554,1750653053796,-460.0,0.00022191,2]
[367086555,1750653053806,-151.0,0.00022191,7]
[367086556,1750653053815,-151.0,0.00022191,7]
[367086557,1750653053825,-460.0,0.00022191,2]
[367086558,1750653053834,-460.0,0.00022191,2]
[367086559,1750653053844,-151.0,0.00022191,7]
[367086560,1750653053855,-151.0,0.00022191,7]
[367086561,1750653053864,-270.341912,0.00022191,7]
[367086562,1750653053874,-546.18,0.00022191,2]
[367086563,1750653053884,-397.34100132,0.00022191,2]
[367086564,1750653053894,-153.12975,0.00022191,7]
[367086565,1750653053903,-460.0,0.00022191,2]
[367086566,1750653053912,-460.0,0.00022191,2]
[367086567,1750653053922,-460.0,0.00022191,2]
[367086568,1750653053931,-837.71,0.00022191,2]
[367086569,1750653053940,-460.0,0.00022191,2]
[367086570,1750653053950,-460.0,0.00022191,2]
[367086571,1750653053959,-460.0,0.00022191,2]
[367086572,1750653053969,-460.0,0.00022191,2]
[367086573,1750653053978,-460.0,0.00022191,2]
[367086574,1750653053987,-460.0,0.00022191,2]
[367086575,1750653053997,-599.88,0.00022191,2]
[367086576,1750653054006,-460.0,0.00022191,2]
[367086577,1750653054016,-1385.94,0.00022191,2]
[367086578,1750653054025,-156.038871,0.00022191,7]
[367086579,1750653054034,-460.0,0.00022191,2]
[367086580,1750653054043,-539.68,0.00022191,2]
[367086581,1750653054053,-748.28,0.00022191,2]
[367086582,1750653054062,-460.0,0.00022191,2]
[367086583,1750653054071,-307.69259463,0.00022191,2]
[367086584,1750653054080,-460.0,0.00022191,2]
[367086585,1750653054090,-460.0,0.00022191,2]
[367086586,1750653054100,-460.0,0.00022191,2]
[367086587,1750653054109,-460.0,0.00022191,2]
[367086588,1750653054119,-460.0,0.00022191,2]
[367086589,1750653054129,-460.0,0.00022191,2]
[367086590,1750653054138,-460.0,0.00022191,2]
[367086591,1750653054148,-460.0,0.00022191,2]
[367086592,1750653054157,-460.0,0.00022191,2]
[367086593,1750653054166,-460.0,0.00022191,2]
[367086594,1750653054178,-460.0,0.00022191,2]
[367086595,1750653054188,-514.01,0.00022191,2]
[367086596,1750653054198,-538.39513772,0.00022191,2]
[367086597,1750653054207,-621.15,0.00022191,2]
[367086598,1750653054217,-460.0,0.00022191,2]
[367086599,1750653054225,-460.0,0.00022191,2]
[367086600,1750653054235,-460.0,0.00022191,2]
[367086601,1750653054244,-460.0,0.00022191,2]
[367086602,1750653054253,-1107.93,0.00022191,2]
[367086603,1750653054263,-460.0,0.00022191,2]
[367086604,1750653054272,-460.0,0.00022191,2]
[367086605,1750653054281,-478.41,0.00022191,2]
[367086606,1750653054291,-1117.76,0.00022191,2]
[367086607,1750653054300,-460.0,0.00022191,2]
[367086608,1750653054310,-734.2,0.00022191,2]
[367086609,1750653054319,-460.0,0.00022191,2]
[367086610,1750653054328,-267.450025,0.00022191,7]
[367086611,1750653054338,-460.0,0.00022191,2]
[367086612,1750653054347,-460.0,0.00022191,2]
[367086613,1750653054357,-498.65,0.00022191,2]
[367086614,1750653054367,-371.64696487,0.00022191,2]
[367086615,1750653054376,-460.0,0.00022191,2]
[367086616,1750653054386,-460.0,0.00022191,2]
[367086617,1750653054396,-691.77,0.00022191,2]
[367086618,1750653054405,-460.0,0.00022191,2]
[367086619,1750653054414,-460.0,0.00022191,2]
[367086620,1750653054424,-681.97,0.00022191,2]
[367086621,1750653054434,-151.0,0.00022191,7]
[367086622,1750653054443,-151.0,0.00022191,7]
[367086623,1750653054454,-7619.48,0.00022191,2]
[367086624,1750653054464,-151.0,0.00022191,7]
[367086625,1750653054473,-460.0,0.00022191,2]
[367086626,1750653054482,-460.0,0.00022191,2]
[367086627,1750653054492,-460.0,0.00022191,2]
[367086628,1750653054500,-1792.56,0.00022191,2]
[367086629,1750653054510,-500.0,0.00022191,2]
[367086630,1750653054519,-460.0,0.00022191,2]
[367086631,1750653054529,-1063.27,0.00022191,2]
[367086632,1750653054538,-460.0,0.00022191,2]
[367086633,1750653054547,-151.0,0.00022191,2]
[367086634,1750653054557,-500.0,0.00022191,2]
[367086635,1750653054566,-460.0,0.00022191,2]
[367086636,1750653054575,-151.0,0.00022191,2]
[367086637,1750653054585,-460.0,0.00022191,2]
[367086638,1750653054595,-460.0,0.00022191,2]
[367086639,1750653054605,-151.0,0.00022191,2]
[367086640,1750653054614,-460.0,0.00022191,2]
[367086641,1750653054625,-460.0,0.00022191,2]
[367086642,1750653054634,-460.0,0.00022191,2]
[367086643,1750653054644,-256.11180284,0.00022191,2]
[367086644,1750653054654,-697.66,0.00022191,2]
[367086645,1750653054664,-151.0,0.00022191,2]
[367086646,1750653054674,-460.0,0.00022191,2]
[367086647,1750653054684,-183.45633413,0.00022191,2]
[367086648,1750653054694,-500.0,0.00022191,2]
[367086649,1750653054704,-460.0,0.00022191,2]
[367086650,1750653054717,-226.41863382,0.00022191,2]
[367086651,1750653054727,-460.0,0.00022191,2]
[367086652,1750653054736,-271.59232759,0.00022191,2]
[367086653,1750653054746,-151.0,0.00022191,2]
[367086654,1750653054757,-893.7,0.00022191,2]
[367086655,1750653054766,-151.0,0.00022191,2]
[367086656,1750653054776,-151.0,0.00022191,2]
[367086657,1750653054786,-460.0,0.00022191,2]
[367086658,1750653054796,-151.0,0.00022191,2]
[367086659,1750653054806,-460.0,0.00022191,2]
[367086660,1750653054816,-460.0,0.00022191,2]
[367086661,1750653054827,-460.0,0.00022191,2]
[367086662,1750653054836,-622.27,0.00022191,2]
[367086663,1750653054846,-6328.06,0.00022191,2]
[367086664,1750653054856,-1119.87,0.00022191,2]
[367086665,1750653054865,-460.0,0.00022191,2]
[367086666,1750653054876,-858.02,0.00022191,2]
[367086667,1750653054885,-460.0,0.00022191,2]
[367086668,1750653054895,-460.0,0.00022191,2]
[367086669,1750653054907,-460.0,0.00022191,2]
[367086670,1750653054916,-460.0,0.00022191,2]
[367086671,1750653054926,-2325.01,0.00022191,2]
[367086672,1750653054935,-460.0,0.00022191,2]
[367086673,1750653054945,-714.46,0.00022191,2]
[367086674,1750653054955,-540.46,0.00022191,2]
[367086675,1750653054964,-774.7,0.00022191,2]
[367086676,1750653054974,-151.0,0.00022191,7]
[367086677,1750653054983,-151.0,0.00022191,7]
[367086678,1750653054993,-192.12283,0.00022191,7]
[367086679,1750653055003,-958.138614,0.00022191,7]
[367086680,1750653055012,-958.138614,0.00022191,7]
[367086681,1750653055022,-460.0,0.00022191,2]
[367086682,1750653055031,-958.138614,0.00022191,7]
[367086683,1750653055041,-958.138614,0.00022191,7]
[367086684,1750653055051,-958.138614,0.00022191,7]
[367086685,1750653055060,-958.138614,0.00022191,7]
[367086686,1750653055070,-577.13,0.00022191,2]
[367086687,1750653055079,-460.0,0.00022191,2]
[367086688,1750653055089,-1100.25,0.00022191,2]
[367086689,1750653055098,-1336.88,0.00022191,2]
[367086690,1750653055107,-460.0,0.00022191,2]
[367086691,1750653055117,-460.0,0.00022191,2]
[367086692,1750653055127,-460.0,0.00022191,2]
[367086693,1750653055137,-213.63163053,0.00022191,7]
[367086694,1750653055146,-244.25413061,0.00022191,2]
[367086695,1750653055157,-460.0,0.00022191,2]
[367086696,1750653055167,-460.0,0.00022191,2]
[367086697,1750653055177,-460.0,0.00022191,2]
[367086698,1750653055187,-461.78707432,0.00022191,2]
[367086699,1750653055196,-460.0,0.00022191,2]
[367086700,1750653055206,-460.0,0.00022191,2]
[367086701,1750653055215,-460.0,0.00022191,2]
[367086702,1750653055224,-151.0,0.00022191,7]
[367086703,1750653055234,-308.89139599,0.00022191,2]
[367086704,1750653055244,-348.54680832,0.00022191,2]
[367086705,1750653055254,-151.0,0.00022191,7]
[367086706,1750653055263,-296.558862,0.00022191,7]
[367086707,1750653055273,-460.0,0.00022191,2]
[367086708,1750653055283,-771.31,0.00022191,2]
[367086709,1750653055293,-460.0,0.00022191,2]
[367086710,1750653055303,-151.0,0.00022191,2]
[367086711,1750653055314,-509.6,0.00022191,2]
[367086712,1750653055323,-460.0,0.00022191,2]
[367086713,1750653055333,-151.0,0.00022191,2]
[367086714,1750653055343,-460.0,0.00022191,2]
[367086715,1750653055352,-151.0,0.00022191,2]
[367086716,1750653055362,-151.0,0.00022191,2]
[367086717,1750653055371,-891.85,0.00022191,2]
[367086718,1750653055381,-484.32194509,0.00022191,2]
[367086719,1750653055390,-151.0,0.00022191,2]
[367086720,1750653055400,-460.0,0.00022191,2]
[367086721,1750653055409,-151.0,0.00022191,2]
[367086722,1750653055419,-212.14,0.00022191,2]
[367086723,1750653055428,-151.0,0.00022191,2]
[367086724,1750653055438,-460.0,0.00022191,2]
[367086725,1750653055447,-151.0,0.00022191,2]
[367086726,1750653055456,-151.0,0.00022191,2]
[367086727,1750653055466,-151.0,0.00022191,2]
[367086728,1750653055475,-1768.08,0.00022191,2]
[367086729,1750653055485,-151.0,0.00022191,2]
[367086730,1750653055494,-151.0,0.00022191,2]
[367086731,1750653055504,-460.0,0.00022191,2]
[367086732,1750653055514,-151.0,0.00022191,2]
[367086733,1750653055523,-2397.59,0.00022191,2]
[367086734,1750653055533,-460.0,0.00022191,2]
[367086735,1750653055543,-460.0,0.00022191,2]
[367086736,1750653055553,-151.0,0.00022191,2]
[367086737,1750653055562,-460.0,0.00022191,2]
[367086738,1750653055573,-151.0,0.00022191,2]
[367086739,1750653055583,-903.83,0.00022191,2]
[367086740,1750653055592,-460.0,0.00022191,2]
[367086741,1750653055602,-460.0,0.00022191,2]
[367086742,1750653055612,-151.27976154,0.00022191,2]
[367086743,1750653055622,-151.0,0.00022191,2]
[367086744,1750653055632,-460.0,0.00022191,2]
[367086745,1750653055641,-846.53928378,0.00022191,7]
[367086746,1750653055651,-709.37,0.00022191,2]
[367086747,1750653055661,-326.92886978,0.00022191,2]
[367086748,1750653055671,-151.0,0.00022191,2]
[367086749,1750653055681,-460.0,0.00022191,2]
[367086750,1750653055690,-460.0,0.00022191,2]
[367086751,1750653055700,-879.36,0.00022191,2]
[367086752,1750653055711,-348.50355534,0.00022191,2]
[367086753,1750653055722,-460.0,0.00022191,2]
[367086754,1750653055732,-460.0,0.00022191,2]
[367086755,1750653055741,-828.61,0.00022191,2]
[367086756,1750653055750,-5427.88,0.00022191,2]
[367086757,1750653055760,-480.90958071,0.00022191,2]
[367086758,1750653055770,-821.21,0.00022191,2]
[367086759,1750653055780,-460.0,0.00022191,2]
[367086760,1750653055790,-742.23,0.00022191,2]
[367086761,1750653055800,-180.79992042,0.00022191,2]
[367086762,1750653055809,-460.0,0.00022191,2]
[367086763,1750653055818,-1242.17,0.00022191,2]
[367086764,1750653055828,-1122.94,0.00022191,2]
[367086765,1750653055837,-412.35062591,0.00022191,2]
[367086766,1750653055848,-2335.62,0.00022191,2]
[367086767,1750653055859,-151.0,0.00022191,7]
[367086768,1750653055868,-460.0,0.00022191,2]
[367086769,1750653055878,-151.0,0.00022191,7]
[367086770,1750653055887,-151.0,0.00022191,7]
[367086771,1750653055898,-1518.33,0.00022191,2]
[367086772,1750653055907,-460.0,0.00022191,2]
[367086773,1750653055917,-3977.65,0.00022191,2]
[367086774,1750653055927,-250.0,0.00022191,2]
[367086775,1750653055937,-922.2,0.00022191,2]
[367086776,1750653055946,-517.19,0.00022191,2]
[367086777,1750653055956,-460.0,0.00022191,2]
[367086778,1750653055966,-460.0,0.00022191,2]
[367086779,1750653055976,-400.94675767,0.00022191,2]
[367086780,1750653055986,-460.0,0.00022191,2]
[367086781,1750653055995,-460.0,0.00022191,2]
[367086782,1750653056005,-460.0,0.00022191,2]
[367086783,1750653056015,-9267.29,0.00022191,2]
[367086784,1750653056025,-151.0,0.00022191,2]
[367086785,1750653056034,-460.0,0.00022191,2]
[367086786,1750653056044,-151.0,0.00022191,2]
[367086787,1750653056053,-465.85343936,0.00022191,2]
[367086788,1750653056063,-151.0,0.00022191,2]
[367086789,1750653056073,-460.0,0.00022191,2]
[367086790,1750653056082,-451.606709,0.00022191,7]
[367086791,1750653056092,-451.606709,0.00022191,7]
[367086792,1750653056102,-151.0,0.00022191,2]
[367086793,1750653056112,-451.606709,0.00022191,7]
[367086794,1750653056122,-151.0,0.00022191,2]
[367086795,1750653056131,-460.0,0.00022191,2]
[367086796,1750653056141,-500.0,0.00022191,2]
[367086797,1750653056151,-469.61,0.00022191,2]
[367086798,1750653056161,-451.606709,0.00022191,7]
[367086799,1750653056170,-500.0,0.00022191,2]
[367086800,1750653056179,-460.0,0.00022191,2]
[367086801,1750653056189,-465.15744517,0.00022191,2]
[367086802,1750653056199,-451.606709,0.00022191,7]
[367086803,1750653056209,-151.0,0.00022191,2]
[367086804,1750653056219,-829.36,0.00022191,2]
[367086805,1750653056232,-451.606709,0.00022191,7]
[367086806,1750653056242,-2754.36,0.00022191,2]
[367086807,1750653056252,-151.0,0.00022191,2]
[367086808,1750653056263,-460.0,0.00022191,2]
[367086809,1750653056272,-460.0,0.00022191,2]
[367086810,1750653056282,-390.15768203,0.00022191,2]
[367086811,1750653056293,-1000.0,0.00022191,2]
[367086812,1750653056303,-460.0,0.00022191,2]
[367086813,1750653056314,-182.47642703,0.00022191,2]
[367086814,1750653056324,-2763.61,0.00022191,2]
[367086815,1750653056335,-460.0,0.00022191,2]
[367086816,1750653056345,-1141.1,0.00022191,2]
[367086817,1750653056356,-578.1,0.00022191,2]
[367086818,1750653056367,-1265.09,0.00022191,2]
[367086819,1750653056376,-460.0,0.00022191,2]
[367086820,1750653056386,-548.55,0.00022191,2]
[367086821,1750653056395,-3340.52,0.00022191,2]
[367086822,1750653056405,-460.0,0.00022191,2]
[367086823,1750653056414,-460.0,0.00022191,2]
[367086824,1750653056424,-460.0,0.00022191,2]
[367086825,1750653056433,-460.0,0.00022191,2]
[367086826,1750653056443,-781.05,0.00022191,2]
[367086827,1750653056453,-460.0,0.00022191,2]
[367086828,1750653056463,-460.0,0.00022191,2]
[367086829,1750653056472,-460.0,0.00022191,2]
[367086830,1750653056482,-2398.16,0.00022191,2]
[367086831,1750653056492,-2700.8,0.00022191,2]
[367086832,1750653056502,-460.0,0.00022191,2]
[367086833,1750653056511,-460.0,0.00022191,2]
[367086834,1750653056520,-460.0,0.00022191,2]
[367086835,1750653056530,-460.0,0.00022191,2]
[367086836,1750653056540,-460.0,0.00022191,2]
[367086837,1750653056550,-1049.83,0.00022191,2]
[367086838,1750653056560,-510.99,0.00022191,2]
[367086839,1750653056569,-460.0,0.00022191,2]
[367086840,1750653056579,-7639.15,0.00022191,2]
[367086841,1750653056588,-612.84,0.00022191,2]
[367086842,1750653056597,-500.0,0.00022191,2]
[367086843,1750653056607,-460.0,0.00022191,2]
[367086844,1750653056616,-320.18067694,0.00022191,2]
[367086845,1750653056626,-460.0,0.00022191,2]
[367086846,1750653056635,-769.01,0.00022191,2]
[367086847,1750653056645,-460.0,0.00022191,2]
[367086848,1750653056655,-460.0,0.00022191,2]
[367086849,1750653056664,-599.54,0.00022191,2]
[367086850,1750653056674,-460.0,0.00022191,2]
[367086851,1750653056684,-1641.83,0.00022191,2]
[367086852,1750653056693,-460.0,0.00022191,2]
[367086853,1750653056703,-460.0,0.00022191,2]
[367086854,1750653056715,-460.0,0.00022191,2]
[367086855,1750653056724,-460.0,0.00022191,2]
[367086856,1750653056734,-1549.44,0.00022191,2]
[367086857,1750653056744,-521.01,0.00022191,2]
[367086858,1750653056754,-460.0,0.00022191,2]
[367086859,1750653056764,-460.0,0.00022191,2]
[367086860,1750653056774,-1571.62,0.00022191,2]
[367086861,1750653056785,-460.0,0.00022191,2]
[367086862,1750653056795,-571.53,0.00022191,2]
[367086863,1750653056806,-460.0,0.00022191,2]
[367086864,1750653056815,-151.0,0.00022191,7]
[367086865,1750653056825,-223.647525,0.00022191,7]
[367086866,1750653056835,-2370.04,0.00022191,2]
[367086867,1750653056845,-5248.16,0.00022191,2]
[367086868,1750653056856,-3559.26,0.00022191,2]
[367086869,1750653056866,-744.27,0.00022191,2]
[367086870,1750653056877,-460.0,0.00022191,2]
[367086871,1750653056887,-460.0,0.00022191,2]
[367086872,1750653056897,-460.0,0.00022191,2]
[367086873,1750653056907,-750.2,0.00022191,2]
[367086874,1750653056918,-460.0,0.00022191,2]
[367086875,1750653057071,-20508.93,0.00022191,2]
[367086876,1750653057095,-460.0,0.00022191,2]
[367086877,1750653057105,-3104.47,0.00022191,2]
[367086878,1750653057115,-964.31,0.00022191,2]
[367086879,1750653057124,-160.0,0.00022191,7]
[367086880,1750653057133,-460.0,0.00022191,2]
[367086881,1750653057142,-460.0,0.00022191,2]
[367086882,1750653057151,-460.0,0.00022191,2]
[367086883,1750653057160,-6628.96,0.00022191,2]
[367086884,1750653057169,-1946.91,0.00022191,2]
[367086885,1750653057178,-927.72,0.00022191,2]
[367086886,1750653057187,-8748.17,0.00022191,2]
[367086887,1750653057196,-460.0,0.00022191,2]
[367086888,1750653057205,-460.0,0.00022191,2]
[367086889,1750653057214,-460.0,0.00022191,2]
[367086890,1750653057223,-1137.71,0.00022191,2]
[367086891,1750653057233,-241.36584055,0.00022191,2]
[367086892,1750653057242,-460.0,0.00022191,2]
[367086893,1750653057251,-460.0,0.00022191,2]
[367086894,1750653057261,-2059.26,0.00022191,2]
[367086895,1750653057270,-450.52023403,0.00022191,2]
[367086896,1750653057279,-1264.74,0.00022191,2]
[367086897,1750653057288,-460.0,0.00022191,2]
[367086898,1750653057298,-969.9,0.00022191,2]
[367086899,1750653057307,-460.0,0.00022191,2]
[367086900,1750653057316,-1641.87,0.00022191,2]
[367086901,1750653057325,-460.0,0.00022191,2]
[367086902,1750653057334,-500.0,0.00022191,2]
[367086903,1750653057343,-460.0,0.00022191,2]
[367086904,1750653057352,-460.0,0.00022191,2]
[367086905,1750653057361,-460.0,0.00022191,2]
[367086906,1750653057370,-460.0,0.00022191,2]
[367086907,1750653057379,-1340.15,0.00022191,2]
[367086908,1750653057389,-460.0,0.00022191,2]
[367086909,1750653057398,-403.45053996,0.00022191,2]
[367086910,1750653057407,-835.91,0.00022191,2]
[367086911,1750653057416,-733.72,0.00022191,2]
[367086912,1750653057425,-460.0,0.00022191,2]
[367086913,1750653057435,-889.01,0.00022191,2]
[367086914,1750653057444,-460.0,0.00022191,2]
[367086915,1750653057453,-464.28194219,0.00022191,2]
[367086916,1750653057463,-272.626649,0.00022191,7]
[367086917,1750653057472,-5558.49,0.00022191,2]
[367086918,1750653057481,-272.626649,0.00022191,7]
[367086919,1750653057491,-272.626649,0.00022191,7]
[367086920,1750653057503,-460.0,0.00022191,2]
[367086921,1750653057512,-6551.47,0.00022191,2]
[367086922,1750653057521,-272.626649,0.00022191,7]
[367086923,1750653057530,-460.0,0.00022191,2]
[367086924,1750653057540,-272.626649,0.00022191,7]
[367086925,1750653057550,-460.0,0.00022191,2]
[367086926,1750653057560,-272.626649,0.00022191,7]
[367086927,1750653057570,-572.64,0.00022191,2]
[367086928,1750653057579,-1492.23,0.00022191,2]
[367086929,1750653057589,-151.0,0.00022191,7]
[367086930,1750653057598,-151.0,0.00022191,7]
[367086931,1750653057607,-590.203614,0.00022191,7]
[367086932,1750653057618,-151.0,0.00022191,7]
[367086933,1750653057630,-590.203614,0.00022191,7]
[367086934,1750653057639,-590.203614,0.00022191,7]
[367086935,1750653057648,-460.0,0.00022191,2]
[367086936,1750653057657,-278.59907381,0.00022191,2]
[367086937,1750653057667,-1521.36,0.00022191,2]
[367086938,1750653057677,-460.0,0.00022191,2]
[367086939,1750653057686,-601.81174642,0.00022191,2]
[367086940,1750653057695,-590.203614,0.00022191,7]
[367086941,1750653057705,-590.203614,0.00022191,7]
[367086942,1750653057719,-460.0,0.00022191,2]
[367086943,1750653057729,-590.203614,0.00022191,7]
[367086944,1750653057739,-460.0,0.00022191,2]
[367086945,1750653057749,-460.0,0.00022191,2]
[367086946,1750653057759,-2919.93,0.00022191,2]
[367086947,1750653057768,-460.0,0.00022191,2]
[367086948,1750653057777,-460.0,0.00022191,2]
[367086949,1750653057787,-3250.09,0.00022191,2]
[367086950,1750653057797,-460.0,0.00022191,2]
[367086951,1750653057806,-1988.91,0.00022191,2]
[367086952,1750653057815,-486.58,0.00022191,2]
[367086953,1750653057825,-460.0,0.00022191,2]
[367086954,1750653057834,-460.0,0.00022191,2]
[367086955,1750653057844,-460.0,0.00022191,2]
[367086956,1750653057854,-460.0,0.00022191,2]
[367086957,1750653057863,-499.08,0.00022191,2]
[367086958,1750653057873,-460.0,0.00022191,2]
[367086959,1750653057883,-460.49185227,0.00022191,2]
[367086960,1750653057892,-460.0,0.00022191,2]
[367086961,1750653057902,-770.43,0.00022191,2]
[367086962,1750653057911,-460.0,0.00022191,2]
[367086963,1750653057920,-1844.57,0.00022191,2]
[367086964,1750653057929,-1605.06,0.00022191,2]
[367086965,1750653057939,-460.0,0.00022191,2]
[367086966,1750653057948,-857.85,0.00022191,2]
[367086967,1750653057958,-433.05157772,0.00022191,2]
[367086968,1750653057967,-460.0,0.00022191,2]
[367086969,1750653057977,-460.0,0.00022191,2]
[367086970,1750653057986,-460.0,0.00022191,2]
[367086971,1750653057996,-471.31910393,0.00022191,2]
[367086972,1750653058005,-1107.51,0.00022191,2]
[367086973,1750653058015,-460.0,0.00022191,2]
[367086974,1750653058025,-499.28153475,0.00022191,2]
[367086975,1750653058034,-460.0,0.00022191,2]
[367086976,1750653058043,-460.0,0.00022191,2]
[367086977,1750653058054,-441.0,0.00022192,7]
[367086978,1750653058063,-10052.92952473,0.000222,2]
[367086979,1750653058073,-2000.0,0.000222,3]
[367086980,1750653058082,-9239.88,0.000222,7]
[367086981,1750653058092,-151.0,0.000222,7]
[367086982,1750653058101,-151.012141,0.00022218,2]
[367086983,1750653058110,-151.0,0.00022218,2]
[367086984,1750653058120,-151.0,0.00022218,2]
[367086985,1750653058129,-151.0,0.00022218,2]
[367086986,1750653058138,-151.0,0.00022218,2]
[367086987,1750653058148,-151.0,0.00022218,2]
[367086988,1750653058157,-500.0,0.00022218,2]
[367086989,1750653058166,-500.0,0.00022218,2]
[367086990,1750653058176,-151.0,0.00022218,2]
[367086991,1750653058185,-151.0,0.00022218,2]
[367086992,1750653058195,-151.0,0.00022218,2]
[367086993,1750653058204,-151.0,0.00022218,2]
[367086994,1750653058213,-151.0,0.00022218,2]
[367086995,1750653058222,-151.0,0.00022218,2]
[367086996,1750653058232,-151.0,0.00022218,2]
[367086997,1750653058241,-151.0,0.00022218,2]
[367086998,1750653058250,-151.0,0.00022218,2]
[367086999,1750653058260,-151.0,0.00022218,2]
[367087000,1750653058269,-151.0,0.00022218,2]
[367087001,1750653058279,-151.0,0.00022218,2]
[367087002,1750653058288,-151.0,0.00022218,2]
[367087003,1750653058298,-151.0,0.00022218,2]
[367087004,1750653058307,-151.0,0.00022218,2]
[367087005,1750653058317,-151.0,0.00022218,2]
[367087006,1750653058326,-151.0,0.00022218,2]
[367087007,1750653058336,-151.0,0.00022218,2]
[367087008,1750653058345,-151.0,0.00022218,2]
[367087009,1750653058355,-151.0,0.00022218,2]
[367087010,1750653058364,-500.0,0.00022218,2]
[367087011,1750653058374,-500.0,0.00022218,2]
[367087012,1750653058383,-151.0,0.00022218,2]
[367087013,1750653058393,-198.0,0.00022246,2]
[367087014,1750653058403,-198.0,0.00022246,2]
[367087015,1750653058411,-151.0,0.00022246,2]
[367087016,1750653058421,-151.0,0.00022246,2]
[367087017,1750653058431,-151.0,0.00022246,2]
[367087018,1750653058441,-500.0,0.00022246,2]
[367087019,1750653058451,-500.0,0.00022246,2]
[367087020,1750653058460,-198.0,0.00022246,2]
[367087021,1750653058470,-151.0,0.00022246,2]
[367087022,1750653058479,-151.0,0.00022246,2]
[367087023,1750653058488,-198.0,0.00022246,2]
[367087024,1750653058497,-198.0,0.00022246,2]
[367087025,1750653058507,-198.0,0.00022246,2]
[367087026,1750653058516,-198.0,0.00022246,2]
[367087027,1750653058525,-198.0,0.00022246,2]
[367087028,1750653058535,-198.0,0.00022246,2]
[367087029,1750653058544,-198.0,0.00022246,2]
[367087030,1750653058554,-198.0,0.00022246,2]